bitfinex/quotes_SOLUSD_20251030
["timestamp","ask_amount","ask_price","bid_price","bid_amount"]
[1761817071767,0.1,193.15,193.13,3.22378564]
[1761817072064,0.1,193.15,193.13,6.61647643]
[1761817072275,0.1,193.15,193.13,7.31647643]
[1761817072471,0.1,193.15,193.13,6.61647643]
[1761817073756,0.1,193.15,193.14,3.22378564]
[1761817073961,0.1,193.15,193.14,3.92378564]
[1761817074672,0.1,193.15,193.14,7.31647643]
[1761817075807,0.1,193.15,193.14,12.49406781]
[1761817076155,0.1,193.15,193.14,22.2828955]
[1761817077767,0.1,193.15,193.14,4.09269079]
[1761817077966,0.1,193.15,193.14,3.39269079]
[1761817078173,0.1,193.15,193.13,3.22378564]
[1761817078473,0.1,193.15,193.13,13.01261333]
[1761817081064,0.79,193.15,193.13,9.78882769]
[1761817081377,0.79,193.15,193.11,3.22378564]
[1761817081680,0.79,193.15,193.11,6.44757128]
[1761817081881,0.79,193.15,193.12,3.22378564]
[1761817082957,3.22378564,193.13,193.11,3.22378564]
[1761817083274,3.22378564,193.13,193.08,3.22378564]
[1761817083586,0.69,193.12,193.08,3.22378564]
[1761817083788,3.91378564,193.12,193.06,12.95117884]
[1761817083964,3.91378564,193.12,193.07,3.22378564]
[1761817084165,0.69,193.11,193.07,3.22378564]
[1761817085587,0.69,193.11,193.08,12.95117884]
[1761817085886,3.91378564,193.11,193.08,12.95117884]
[1761817086273,0.69,193.1,193.08,12.95117884]
[1761817087014,0.69,193.1,193.06,3.22378564]
[1761817087185,0.69,193.1,193.05,0.66]
[1761817087186,0.69,193.1,193.07,12.95117884]
[1761817087497,3.22378564,193.08,193.01,3.22378564]
[1761817087698,3.22378564,193.07,193.01,3.22378564]
[1761817087908,3.22378564,193.05,193.0,3.88378564]
[1761817088263,3.91378564,193.05,193.0,3.88378564]
[1761817088606,3.91378564,193.05,193.0,22.01628431]
[1761817088782,0.69,193.05,193.01,3.22378564]
[1761817089164,0.69,193.05,193.01,3.88378564]
[1761817089598,3.91378564,193.1,193.04,3.22378564]
[1761817090112,3.91378564,193.1,193.06,3.22378564]
[1761817090113,3.3890405,193.1,193.06,3.22378564]
[1761817090272,6.61282614,193.12,193.06,3.22378564]
[1761817090603,0.69,193.11,193.06,3.22378564]
[1761817091103,4.0790405,193.11,193.07,10.44882769]
[1761817091277,0.69,193.11,193.07,10.44882769]
[1761817091465,0.69,193.1,193.07,10.44882769]
[1761817092692,2.75368825,193.1,193.07,10.44882769]
[1761817092898,0.69,193.1,193.07,10.44882769]
[1761817094698,2.75368825,193.1,193.07,10.44882769]
[1761817095071,0.68,193.09,193.07,10.44882769]
[1761817096200,2.74368825,193.09,193.04,2.06368825]
[1761817096498,2.74368825,193.09,193.05,3.3890405]
[1761817096702,0.68,193.08,193.05,3.3890405]
[1761817098341,2.74368825,193.08,193.05,3.3890405]
[1761817098481,2.74368825,193.08,193.03,2.06368825]
[1761817098675,2.74368825,193.07,193.01,5.85086126]
[1761817098869,2.06368825,193.06,193.02,3.3890405]
[1761817099174,2.74368825,193.06,193.02,3.3890405]
[1761817099374,2.06368825,193.07,193.02,5.45272875]
[1761817099610,2.74368825,193.08,193.02,11.3035376]
[1761817099769,105.46368825,193.09,193.04,2.06368825]
[1761817100216,105.46368825,193.09,193.05,0.67]
[1761817100383,104.08,193.09,193.05,0.67]
[1761817100701,104.08,193.09,193.05,2.73368825]
[1761817100910,103.4,193.09,193.05,2.06368825]
[1761817101113,0.68,193.08,193.04,15.68768888]
[1761817101485,0.68,193.08,193.04,16.35768888]
[1761817102021,0.68,193.08,193.04,15.68768888]
[1761817102189,0.68,193.13,193.06,2.06368825]
[1761817102504,0.68,193.13,193.08,2.06368825]
[1761817102711,20.592,193.12,193.08,2.06368825]
[1761817103086,21.272,193.12,193.08,2.06368825]
[1761817103406,21.272,193.12,193.08,2.73368825]
[1761817103608,21.272,193.12,193.08,2.06368825]
[1761817104410,0.68,193.11,193.07,15.5743024]
[1761817104599,0.68,193.11,193.07,17.63799065]
[1761817105312,0.68,193.11,193.07,22.81744701]
[1761817105515,0.1,193.15,193.1,2.06368825]
[1761817105816,0.1,193.15,193.13,2.06368825]
[1761817106022,0.1,193.15,193.14,2.06368825]
[1761817106630,0.1,193.15,193.14,12.52251594]
[1761817107201,0.1,193.15,193.12,9.78882769]
[1761817107400,0.1,193.15,193.13,2.06368825]
[1761817107899,0.79,193.15,193.11,17.63394905]
[1761817108097,0.79,193.15,193.11,18.33394905]
[1761817108517,0.1,193.15,193.13,2.06368825]
[1761817108728,0.1,193.15,193.14,2.06368825]
[1761817109533,0.1,193.15,193.14,17.73010732]
[1761817110320,0.1,193.15,193.14,33.29794416]
[1761817110900,0.1,193.15,193.14,27.42035278]
[1761817111614,0.1,193.15,193.14,17.63152509]
[1761817111812,0.1,193.15,193.14,15.56783684]
[1761817112227,0.79,193.15,193.14,15.56783684]
[1761817112403,0.79,193.15,193.11,5.17829303]
[1761817112404,0.79,193.15,193.1,5.17864358]
[1761817112603,0.79,193.15,193.11,4.13993854]
[1761817113627,2.85368825,193.15,193.08,5.17897546]
[1761817113830,2.85368825,193.15,193.1,12.55251594]
[1761817114324,0.69,193.14,193.1,12.55251594]
[1761817115025,2.75368825,193.14,193.1,10.48882769]
[1761817115325,2.06368825,193.12,193.07,17.0319271]
[1761817115515,2.75368825,193.13,193.08,17.0319271]
[1761817115830,2.06368825,193.13,193.08,17.0319271]
[1761817116032,0.69,193.12,193.08,17.0319271]
[1761817116715,0.69,193.12,193.07,2.06368825]
[1761817117039,0.69,193.12,193.08,3.4793614]
[1761817117233,0.69,193.12,193.08,5.54304965]
[1761817117423,22.65568825,193.13,193.08,6.24304965]
[1761817117621,0.69,193.12,193.08,6.24304965]
[1761817118020,0.69,193.12,193.09,2.06368825]
[1761817118534,0.69,193.12,193.08,5.54304965]
[1761817119244,0.69,193.12,193.07,2.06368825]
[1761817119427,0.69,193.12,193.07,7.6067379]
[1761817120324,2.75368825,193.12,193.07,5.54304965]
[1761817120630,2.75368825,193.12,193.07,10.72245601]
[1761817120817,0.69,193.11,193.07,10.72245601]
[1761817121022,103.4,193.1,193.07,5.54304965]
[1761817122147,0.69,193.09,193.05,2.06368825]
[1761817122360,0.69,193.09,193.06,5.87964881]
[1761817122558,2.06368825,193.08,193.0,5.18134715]
[1761817122862,2.06368825,193.08,193.03,9.78882769]
[1761817123020,0.69,193.07,193.03,9.78882769]
[1761817123221,0.69,193.07,193.03,10.48882769]
[1761817123427,0.69,193.07,193.03,15.66922592]
[1761817123941,0.69,193.07,193.03,14.96922592]
[1761817124338,0.69,193.09,193.04,0.7]
[1761817124519,0.69,193.09,193.07,2.06368825]
[1761817124722,0.69,193.09,193.04,0.7]
[1761817124723,103.4,193.1,193.08,2.06368825]
[1761817125042,103.4,193.1,193.09,2.06368825]
[1761817125341,0.1,193.15,193.09,2.06368825]
[1761817125342,103.5,193.15,193.09,2.06368825]
[1761817125512,3.3864275,193.14,193.12,2.06368825]
[1761817125919,4.0764275,193.14,193.12,2.06368825]
[1761817126441,0.69,193.14,193.12,2.06368825]
[1761817126736,0.69,193.14,193.09,5.1789321]
[1761817127038,0.69,193.14,193.12,2.06368825]
[1761817128127,103.5,193.15,193.12,2.06368825]
[1761817128326,103.5,193.15,193.14,2.06368825]
[1761817128534,0.1,193.15,193.14,2.06368825]
[1761817129746,0.1,193.15,193.14,2.76368825]
[1761817130229,0.79,193.15,193.12,3.38818659]
[1761817130430,0.79,193.15,193.13,2.06368825]
[1761817130744,0.1,193.15,193.14,2.06368825]
[1761817131635,0.79,193.15,193.14,2.06368825]
[1761817131844,0.1,193.15,193.14,2.06368825]
[1761817132548,0.79,193.15,193.1,5.17860357]
[1761817132751,0.79,193.15,193.11,2.06368825]
[1761817133739,0.79,193.15,193.12,2.06368825]
[1761817134864,0.79,193.15,193.11,2.06368825]
[1761817135430,0.79,193.15,193.1,12.69416664]
[1761817136378,2.85368825,193.15,193.1,7.2422918]
[1761817136869,104.09,193.14,193.1,2.06368825]
[1761817137170,104.09,193.14,193.09,15.0116252]
[1761817137347,0.72,193.13,193.09,15.0116252]
[1761817137852,0.72,193.13,193.09,2.06368825]
[1761817138039,2.78368825,193.13,193.08,5.17918464]
[1761817138240,2.78368825,193.13,193.08,20.19080984]
[1761817138457,0.72,193.12,193.08,20.19080984]
[1761817140449,2.06368825,193.11,193.05,2.72368825]
[1761817140762,105.46368825,193.1,193.06,15.57591962]
[1761817140969,105.46368825,193.1,193.04,5.18027351]
[1761817141167,0.72,193.09,193.04,5.18027351]
[1761817141382,0.72,193.09,193.04,20.75619313]
[1761817141383,2.78368825,193.09,193.04,20.75619313]
[1761817141749,0.72,193.08,193.04,21.41619313]
[1761817142357,2.78368825,193.08,193.04,15.57591962]
[1761817142559,103.4,193.07,193.05,2.06368825]
[1761817142772,103.4,193.06,193.05,2.06368825]
[1761817144060,103.4,193.06,193.02,0.66]
[1761817144281,103.4,193.06,193.05,2.06368825]
[1761817146380,103.4,193.06,193.05,7.90369343]
[1761817147380,103.4,193.06,193.05,2.06368825]
[1761817148588,103.4,193.06,193.04,5.18018301]
[1761817148788,103.4,193.06,193.05,2.06368825]
[1761817149253,103.4,193.06,193.05,2.72368825]
[1761817149457,104.12,193.13,193.05,2.72368825]
[1761817149682,104.12,193.13,193.11,2.06368825]
[1761817150255,103.4,193.13,193.11,2.06368825]
[1761817150485,0.72,193.12,193.11,2.06368825]
[1761817150864,0.72,193.12,193.1,2.06368825]
[1761817151075,103.4,193.13,193.08,5.17907781]
[1761817151296,103.4,193.13,193.08,0.66]
[1761817151297,0.72,193.12,193.08,0.66]
[1761817151600,0.72,193.12,193.1,2.06368825]
[1761817153201,0.72,193.12,193.08,5.1791393]
[1761817153376,0.72,193.12,193.09,3.22361866]
[1761817153994,0.72,193.12,193.08,9.11275796]
[1761817154887,0.72,193.12,193.08,8.40275796]
[1761817155090,0.72,193.12,193.08,9.11275796]
[1761817157300,4.11163718,193.12,193.08,9.11275796]
[1761817159805,3.39163718,193.12,193.08,9.11275796]
[1761817160104,4.08163718,193.12,193.08,9.11275796]
[1761817160294,103.4,193.11,193.08,9.11275796]
[1761817161507,0.1,193.15,193.1,13.01244635]
[1761817161703,0.1,193.15,193.13,3.22361866]
[1761817162012,0.1,193.15,193.1,9.78882769]
[1761817162013,0.69,193.14,193.1,3.22361866]
[1761817162395,0.69,193.14,193.1,3.93361866]
[1761817162988,0.69,193.14,193.1,9.1121325]
[1761817163210,0.69,193.14,193.11,3.22361866]
[1761817165511,0.69,193.14,193.12,3.22361866]
[1761817168420,0.69,193.14,193.13,3.22361866]
[1761817169311,0.69,193.14,193.09,5.8289321]
[1761817169515,0.69,193.14,193.13,3.22361866]
[1761817169709,0.69,193.14,193.1,0.65]
[1761817169912,0.69,193.14,193.13,3.22361866]
[1761817170722,0.69,193.14,193.09,5.1789321]
[1761817171022,0.69,193.14,193.13,3.22361866]
[1761817172230,0.69,193.14,193.12,3.22361866]
[1761817172720,0.69,193.14,193.13,3.22361866]
[1761817173301,0.69,193.14,193.12,3.22361866]
[1761817177325,0.1,193.15,193.13,3.87361866]
[1761817177507,0.1,193.15,193.14,3.22361866]
[1761817177708,0.1,193.15,193.14,3.87361866]
[1761817179329,0.1,193.15,193.14,9.05121004]
[1761817179702,0.1,193.15,193.14,18.84003773]
[1761817180302,0.1,193.15,193.14,22.23394864]
[1761817181534,0.1,193.17,193.16,13.01244635]
[1761817181828,4.34238864,193.3,193.17,9.78882769]
[1761817181829,104.12,193.28,193.17,9.78882769]
[1761817182133,104.12,193.28,193.26,3.22361866]
[1761817182330,0.72,193.28,193.26,3.22361866]
[1761817182715,0.72,193.27,193.25,3.22361866]
[1761817184033,0.72,193.27,193.24,3.22361866]
[1761817184527,0.72,193.27,193.23,3.22361866]
[1761817184753,3.22361866,193.26,193.2,3.22361866]
[1761817184904,0.72,193.25,193.2,3.22361866]
[1761817185109,0.72,193.25,193.22,3.22361866]
[1761817186037,0.72,193.25,193.21,3.22361866]
[1761817186534,21.312,193.28,193.24,3.22361866]
[1761817186729,0.82,193.3,193.26,3.22361866]
[1761817187314,0.82,193.3,193.25,3.22361866]
[1761817187540,4.04361866,193.3,193.25,3.22361866]
[1761817187840,0.72,193.29,193.25,3.22361866]
[1761817190027,21.312,193.29,193.25,3.87361866]
[1761817190338,20.592,193.29,193.25,3.22361866]
[1761817190538,0.82,193.3,193.26,0.65]
[1761817190749,0.72,193.29,193.25,3.87361866]
[1761817190914,0.72,193.29,193.25,3.22361866]
[1761817191126,0.72,193.29,193.25,3.87361866]
[1761817192439,103.4,193.28,193.25,3.87361866]
[1761817192940,104.12,193.28,193.25,3.22361866]
[1761817193958,103.4,193.28,193.25,3.22361866]
[1761817194125,104.12,193.28,193.25,3.22361866]
[1761817194326,104.12,193.28,193.23,5.82492665]
[1761817194561,0.72,193.27,193.25,3.22361866]
[1761817194741,104.12,193.28,193.25,3.22361866]
[1761817194942,104.12,193.28,193.26,3.22361866]
[1761817195556,103.4,193.28,193.26,3.22361866]
[1761817196067,104.12,193.28,193.26,3.22361866]
[1761817196246,103.4,193.28,193.27,0.65]
[1761817197043,103.4,193.28,193.26,3.22361866]
[1761817197459,103.4,193.28,193.27,3.22361866]
[1761817198537,103.4,193.28,193.26,3.22361866]
[1761817199948,103.4,193.28,193.25,0.71]
[1761817200149,103.4,193.28,193.26,3.22361866]
[1761817200986,0.66,193.27,193.22,0.71]
[1761817201150,0.66,193.27,193.23,3.22361866]
[1761817201340,0.66,193.27,193.24,3.22361866]
[1761817202744,0.66,193.27,193.22,3.22361866]
[1761817202962,0.66,193.27,193.23,3.22361866]
[1761817203336,103.4,193.26,193.24,3.22361866]
[1761817203544,103.4,193.26,193.21,0.71]
[1761817203743,104.06,193.26,193.23,3.22361866]
[1761817204376,103.4,193.26,193.24,3.93361866]
[1761817204744,103.4,193.26,193.24,3.22361866]
[1761817205365,104.06,193.26,193.24,3.22361866]
[1761817205556,104.06,193.26,193.23,3.22361866]
[1761817205853,0.66,193.25,193.23,3.22361866]
[1761817207153,103.4,193.26,193.23,3.22361866]
[1761817207475,104.06,193.26,193.23,3.22361866]
[1761817207873,103.4,193.26,193.23,3.22361866]
[1761817208069,104.06,193.26,193.23,3.22361866]
[1761817210360,104.06,193.26,193.24,3.22361866]
[1761817210672,103.4,193.26,193.25,3.22361866]
[1761817211081,103.4,193.26,193.25,3.93361866]
[1761817211674,103.4,193.26,193.25,9.1082629]
[1761817212278,0.76,193.3,193.25,9.1082629]
[1761817212477,0.76,193.3,193.28,3.22361866]
[1761817212661,103.4,193.29,193.28,3.22361866]
[1761817212871,103.4,193.29,193.27,3.22361866]
[1761817213576,103.4,193.29,193.27,2.05933817]
[1761817215271,104.06,193.29,193.27,2.05933817]
[1761817217078,103.4,193.29,193.28,2.05933817]
[1761817217260,103.4,193.29,193.27,2.05933817]
[1761817218375,103.4,193.29,193.21,5.17420484]
[1761817218376,0.66,193.28,193.21,5.17420484]
[1761817218556,0.66,193.28,193.23,2.05933817]
[1761817218954,2.71933817,193.28,193.22,2.05933817]
[1761817219159,2.71933817,193.28,193.23,2.05933817]
[1761817219375,0.66,193.27,193.23,2.05933817]
[1761817221466,0.66,193.27,193.23,7.93443832]
[1761817222314,0.66,193.27,193.23,7.23443832]
[1761817223566,103.4,193.26,193.23,7.23443832]
[1761817223895,103.4,193.26,193.22,7.23475452]
[1761817224182,0.66,193.25,193.21,9.78882769]
[1761817224384,0.66,193.25,193.22,2.05933817]
[1761817225465,0.66,193.25,193.22,7.23476299]
[1761817225972,0.66,193.25,193.21,10.48882769]
[1761817225973,0.66,193.25,193.21,7.23499567]
[1761817226186,0.66,193.25,193.21,2.05933817]
[1761817226385,2.71933817,193.25,193.2,2.05933817]
[1761817226575,103.4,193.24,193.19,2.05933817]
[1761817226780,103.4,193.23,193.19,2.05933817]
[1761817227014,0.66,193.22,193.19,2.05933817]
[1761817227296,104.07,193.23,193.2,2.05933817]
[1761817227494,104.07,193.23,193.19,2.73933817]
[1761817227673,103.4,193.23,193.19,2.73933817]
[1761817227997,0.67,193.22,193.2,2.05933817]
[1761817228702,0.67,193.22,193.19,2.05933817]
[1761817229228,103.4,193.23,193.21,2.05933817]
[1761817229390,0.67,193.28,193.23,5.17517983]
[1761817229579,3.39993102,193.27,193.24,2.05933817]
[1761817229778,3.39993102,193.26,193.24,2.05933817]
[1761817229989,4.06993102,193.27,193.24,2.05933817]
[1761817230305,4.06993102,193.27,193.21,5.17556667]
[1761817230306,3.39993102,193.26,193.21,5.17556667]
[1761817230492,0.67,193.25,193.23,2.05933817]
[1761817231004,0.67,193.25,193.21,5.85556667]
[1761817231005,0.67,193.25,193.21,2.05933817]
[1761817231175,4.06993102,193.25,193.21,2.05933817]
[1761817231376,0.67,193.24,193.21,2.05933817]
[1761817231601,0.67,193.24,193.19,5.17612024]
[1761817231773,2.72933817,193.24,193.18,7.23580068]
[1761817231973,6.12910775,193.24,193.18,7.23580068]
[1761817232293,0.67,193.23,193.18,7.23580068]
[1761817232682,22.65133817,193.19,193.08,0.68]
[1761817232905,2.05933817,193.15,193.09,2.05933817]
[1761817233511,2.72933817,193.15,193.09,2.05933817]
[1761817233678,2.72933817,193.15,193.09,7.91823554]
[1761817234514,2.72933817,193.15,193.1,2.05933817]
[1761817234697,2.72933817,193.15,193.09,5.85889737]
[1761817234904,2.72933817,193.15,193.1,2.05933817]
[1761817235281,0.67,193.14,193.1,2.73933817]
[1761817235930,0.67,193.14,193.07,15.6480586]
[1761817236221,2.72933817,193.14,193.08,2.05933817]
[1761817236586,0.67,193.13,193.08,2.05933817]
[1761817237618,0.67,193.13,193.08,7.91836449]
[1761817237847,0.67,193.13,193.08,2.05933817]
[1761817237992,0.67,193.16,193.11,2.05933817]
[1761817238326,0.67,193.16,193.11,2.73933817]
[1761817238819,0.67,193.16,193.08,18.12707645]
[1761817238820,103.4,193.16,193.12,0.68]
[1761817239023,103.4,193.16,193.14,2.05933817]
[1761817239228,103.4,193.16,193.15,2.05933817]
[1761817240299,103.4,193.16,193.14,7.23684592]
[1761817242296,104.07,193.16,193.14,2.05933817]
[1761817242827,104.07,193.16,193.13,7.23715061]
[1761817243827,104.07,193.16,193.13,2.05933817]
[1761817244307,104.07,193.16,193.13,7.23710891]
[1761817244848,0.67,193.15,193.13,2.05933817]
[1761817245400,0.67,193.15,193.12,2.05933817]
[1761817247339,0.67,193.15,193.12,7.2372651]
[1761817247498,0.67,193.15,193.13,2.05933817]
[1761817247705,103.4,193.16,193.13,2.05933817]
[1761817247908,103.4,193.16,193.13,2.73933817]
[1761817248204,103.4,193.16,193.15,2.05933817]
[1761817249101,104.07,193.16,193.15,2.05933817]
[1761817249298,104.07,193.16,193.14,2.05933817]
[1761817250130,104.07,193.16,193.14,7.23692752]
[1761817250425,103.4,193.16,193.14,7.23692752]
[1761817251823,2.72933817,193.15,193.09,2.05933817]
[1761817252014,2.72933817,193.15,193.07,5.17946858]
[1761817252015,2.05933817,193.13,193.07,7.23880675]
[1761817252323,2.72933817,193.14,193.09,2.05933817]
[1761817252503,0.67,193.14,193.09,2.05933817]
[1761817252699,0.67,193.13,193.09,2.73933817]
[1761817252903,0.67,193.15,193.1,2.05933817]
[1761817253326,0.67,193.15,193.11,2.73933817]
[1761817253813,0.67,193.15,193.11,7.23753545]
[1761817254930,0.67,193.15,193.11,7.91753545]
[1761817255134,0.67,193.15,193.11,7.23753545]
[1761817255532,0.67,193.15,193.11,7.23768091]
[1761817256239,0.67,193.15,193.11,5.17834274]
[1761817257038,103.4,193.14,193.11,5.17834274]
[1761817257441,103.4,193.14,193.11,2.05933817]
[1761817257641,104.06,193.14,193.11,2.05933817]
[1761817258125,0.66,193.13,193.11,2.05933817]
[1761817258329,103.4,193.14,193.12,2.05933817]
[1761817258527,104.06,193.14,193.12,2.05933817]
[1761817259322,103.4,193.14,193.12,2.05933817]
[1761817259520,104.06,193.14,193.12,2.05933817]
[1761817260220,103.4,193.14,193.12,2.05933817]
[1761817260618,103.4,193.14,193.13,2.05933817]
[1761817260837,103.4,193.14,193.13,2.70933817]
[1761817261016,103.4,193.14,193.13,2.05933817]
[1761817261214,103.4,193.14,193.13,2.70933817]
[1761817261417,103.4,193.14,193.13,7.88719764]
[1761817261814,103.4,193.19,193.13,20.83184632]
[1761817262020,103.4,193.24,193.18,2.05933817]
[1761817262343,103.4,193.24,193.23,2.05933817]
[1761817262822,0.66,193.23,193.16,0.65]
[1761817263143,0.66,193.23,193.19,2.05933817]
[1761817263349,0.66,193.23,193.2,2.05933817]
[1761817267258,103.4,193.22,193.2,5.17589478]
[1761817267462,103.4,193.22,193.21,2.05933817]
[1761817267748,103.4,193.22,193.21,2.70933817]
[1761817268453,103.4,193.22,193.21,7.88505371]
[1761817271669,0.66,193.23,193.19,5.17599658]
[1761817271836,0.66,193.23,193.22,2.05933817]
[1761817272242,103.4,193.26,193.22,2.70933817]
[1761817272463,103.4,193.26,193.25,2.05933817]
[1761817272839,103.4,193.26,193.25,2.70933817]
[1761817273056,103.4,193.26,193.25,7.23398241]
[1761817275273,104.1,193.26,193.23,2.05933817]
[1761817275565,0.7,193.25,193.23,3.21913314]
[1761817276638,103.4,193.26,193.23,3.21913314]
[1761817276858,104.1,193.26,193.23,3.21913314]
[1761817277057,103.4,193.26,193.23,3.21913314]
[1761817277338,103.4,193.26,193.24,8.39404516]
[1761817278856,0.7,193.25,193.24,3.21913314]
[1761817279046,104.1,193.26,193.24,3.21913314]
[1761817280877,0.7,193.25,193.23,3.21913314]
[1761817281073,0.7,193.25,193.22,8.39455438]
[1761817281464,0.7,193.25,193.23,3.21913314]
[1761817281859,103.4,193.26,193.24,8.39404516]
[1761817282066,103.4,193.26,193.25,3.21913314]
[1761817283466,103.4,193.26,193.24,5.17491202]
[1761817283675,104.1,193.26,193.24,8.39404516]
[1761817284667,104.1,193.26,193.24,3.21913314]
[1761817284879,104.1,193.26,193.23,8.39427257]
[1761817285079,104.1,193.26,193.24,3.21913314]
[1761817285653,107.31913314,193.25,193.07,7.12551339]
[1761817285856,107.31913314,193.25,193.17,3.21913314]
[1761817285857,3.21913314,193.23,193.17,3.21913314]
[1761817286056,3.21913314,193.23,193.17,8.395878]
[1761817286256,0.7,193.22,193.17,3.21913314]
[1761817286665,3.91913314,193.22,193.16,3.21913314]
[1761817286872,3.21913314,193.21,193.15,3.21913314]
[1761817287060,20.592,193.19,193.14,3.21913314]
[1761817287473,0.7,193.18,193.13,3.21913314]
[1761817287668,0.7,193.18,193.12,5.1778718]
[1761817287669,0.7,193.18,193.14,3.21913314]
[1761817287881,0.7,193.18,193.12,5.1778718]
[1761817287882,103.4,193.25,193.16,3.21913314]
[1761817288072,0.7,193.2,193.17,3.21913314]
[1761817289175,0.7,193.2,193.16,3.21913314]
[1761817291101,0.7,193.2,193.16,8.39615235]
[1761817291266,3.91913314,193.2,193.11,0.69]
[1761817291557,3.91913314,193.2,193.14,3.21913314]
[1761817291762,0.7,193.19,193.15,3.21913314]
[1761817292163,0.7,193.19,193.16,3.21913314]
[1761817293584,0.7,193.19,193.14,5.17752406]
[1761817293793,0.7,193.19,193.15,3.21913314]
[1761817294191,0.7,193.19,193.16,3.21913314]
[1761817295094,103.4,193.18,193.16,3.21913314]
[1761817295598,104.1,193.18,193.16,3.21913314]
[1761817296299,103.4,193.18,193.17,3.21913314]
[1761817297074,165.4,193.28,193.17,3.90913314]
[1761817297075,106.61913314,193.25,193.17,3.90913314]
[1761817297274,100.0,193.29,193.18,3.21913314]
[1761817297275,0.7,193.22,193.18,3.21913314]
[1761817297503,3.91913314,193.22,193.16,3.21913314]
[1761817297791,106.61913314,193.21,193.15,3.21913314]
[1761817297997,103.4,193.2,193.15,8.39644546]
[1761817298178,104.1,193.2,193.16,3.21913314]
[1761817298382,0.7,193.19,193.16,3.21913314]
[1761817299592,0.7,193.19,193.15,3.21913314]
[1761817300183,0.7,193.19,193.13,25.76983256]
[1761817300184,0.7,193.19,193.14,3.21913314]
[1761817300396,3.91913314,193.19,193.13,8.39698674]
[1761817300698,20.592,193.17,193.1,0.69]
[1761817300898,106.61913314,193.16,193.1,3.21913314]
[1761817301113,107.31913314,193.16,193.1,3.21913314]
[1761817301311,104.1,193.15,193.1,3.21913314]
[1761817301688,0.7,193.14,193.11,3.21913314]
[1761817303578,103.4,193.13,193.05,0.69]
[1761817303785,0.7,193.12,193.09,3.21913314]
[1761817305807,103.4,193.13,193.1,3.21913314]
[1761817306012,103.4,193.13,193.12,3.21913314]
[1761817306902,103.4,193.13,193.12,3.90913314]
[1761817307094,103.4,193.13,193.12,9.08726072]
[1761817309407,103.4,193.13,193.12,8.39726072]
[1761817309606,104.1,193.13,193.12,3.21913314]
[1761817310307,103.4,193.13,193.12,8.39726072]
[1761817310812,103.4,193.13,193.11,0.69]
[1761817311013,0.7,193.12,193.08,3.21913314]
[1761817311498,0.7,193.12,193.06,5.17973119]
[1761817311700,0.7,193.12,193.1,3.21913314]
[1761817312507,0.7,193.12,193.08,3.21913314]
[1761817313414,0.7,193.12,193.08,8.3982918]
[1761817314016,0.7,193.12,193.09,3.21913314]
[1761817314522,0.7,193.12,193.07,5.17943315]
[1761817314696,0.7,193.12,193.08,3.21913314]
[1761817315316,0.7,193.12,193.08,8.39824476]
[1761817315618,0.7,193.12,193.08,3.21913314]
[1761817315990,0.7,193.12,193.08,8.39829324]
[1761817317400,0.7,193.12,193.08,3.21913314]
[1761817318418,0.7,193.12,193.08,8.39828441]
[1761817319612,0.7,193.12,193.08,9.07828441]
[1761817320308,0.7,193.12,193.09,8.39798062]
[1761817320817,0.7,193.12,193.07,3.21913314]
[1761817321020,0.7,193.12,193.04,3.21913314]
[1761817321021,3.21913314,193.1,193.04,3.21913314]
[1761817321523,0.7,193.09,193.04,3.21913314]
[1761817323410,0.7,193.09,193.04,8.39935115]
[1761817323617,0.7,193.09,193.05,3.21913314]
[1761817324529,0.7,193.09,193.05,3.89913314]
[1761817324830,0.7,193.09,193.06,3.21913314]
[1761817326908,0.7,193.09,193.05,8.39895491]
[1761817327525,0.7,193.09,193.05,5.17982177]